bitfinex-derivatives/quotes_SOLF0:USTF0_20241230
["timestamp","ask_amount","ask_price","bid_price","bid_amount"]
[1735538966822,11.01803216,191.45,191.42,4.05662328]
[1735538967126,8.40083216,191.45,191.41,3.0]
[1735538967820,2.6175,191.43,191.41,3.0]
[1735538969032,2.6174,191.44,191.41,3.0]
[1735538970731,2.6174,191.44,191.4,2.6179]
[1735538971040,2.6174,191.44,191.4,5.6179]
[1735538972034,2.6174,191.44,191.41,4.05395375]
[1735538972333,2.6174,191.44,191.4,5.6179]
[1735538972633,2.6174,191.44,191.41,4.05477285]
[1735538972834,2.6174,191.44,191.4,5.6179]
[1735538973027,2.6174,191.44,191.41,4.05468128]
[1735538973228,2.6174,191.44,191.4,5.6179]
[1735538973732,2.6174,191.44,191.41,4.05551318]
[1735538973932,8.40083216,191.43,191.37,3.0]
[1735538974134,8.40083216,191.43,191.38,4.05599863]
[1735538974333,8.40083216,191.43,191.39,4.05599863]
[1735538974530,8.40083216,191.43,191.37,3.0]
[1735538974724,8.40083216,191.43,191.38,4.0566359]
[1735538974922,8.40083216,191.43,191.39,4.0566359]
[1735538975123,8.40083216,191.43,191.37,5.6183]
[1735538975331,8.40083216,191.43,191.38,4.0541371]
[1735538975533,8.40083216,191.43,191.39,4.0541371]
[1735538975725,2.6179,191.41,191.37,5.6183]
[1735538975930,2.6179,191.41,191.38,4.05303762]
[1735538976129,8.40083216,191.43,191.39,4.05303762]
[1735538976330,2.618,191.4,191.37,3.0]
[1735538976635,8.40083216,191.43,191.38,4.05379589]
[1735538976933,8.40083216,191.43,191.39,4.05397987]
[1735538977134,8.40083216,191.43,191.36,11.40083216]
[1735538977333,8.40083216,191.43,191.37,4.05422458]
[1735538977533,2.618,191.4,191.38,4.05422458]
[1735538977734,2.618,191.4,191.36,11.40083216]
[1735538977933,2.618,191.39,191.37,4.05477167]
[1735538978132,2.618,191.39,191.38,4.05477167]
[1735538979738,8.40083216,191.43,191.38,4.05477167]
[1735538979942,2.6177,191.42,191.39,4.05616097]
[1735538980239,2.6177,191.42,191.38,2.6182]
[1735538980439,2.6177,191.42,191.39,4.05581538]
[1735538980640,2.6177,191.42,191.38,2.6182]
[1735538980842,2.6177,191.42,191.39,4.05651076]
[1735538981139,2.6177,191.42,191.38,2.6182]
[1735538981337,2.6177,191.42,191.39,4.05662251]
[1735538981539,2.6177,191.42,191.38,2.6182]
[1735538981838,2.6177,191.42,191.39,4.05715183]
[1735538982142,2.6177,191.42,191.38,2.6182]
[1735538982335,2.6177,191.42,191.39,4.05757722]
[1735538982641,2.6177,191.42,191.38,2.6182]
[1735538982939,2.6177,191.42,191.39,4.05758001]
[1735538983145,2.6177,191.42,191.38,2.6182]
[1735538983332,2.6177,191.42,191.39,4.05706886]
[1735538983532,8.40083216,191.44,191.38,2.6182]
[1735538983739,2.6178,191.41,191.39,4.05734803]
[1735538984039,2.6178,191.41,191.38,2.6182]
[1735538984233,2.6178,191.41,191.39,4.05667165]
[1735538984545,2.6178,191.41,191.4,4.05667165]
[1735538985638,2.6178,191.41,191.38,2.6182]
[1735538985844,2.6178,191.41,191.4,4.05466094]
[1735538986751,2.6177,191.42,191.4,4.05466094]
[1735538986950,2.6177,191.42,191.41,4.05466094]
[1735538988351,2.6175,191.44,191.41,4.05466094]
[1735538988552,1.5546,191.5,191.42,4.05466094]
[1735538988754,8.40083216,191.47,191.41,3.0]
[1735538988955,8.40083216,191.47,191.42,4.05395745]
[1735538989147,8.40083216,191.47,191.43,4.05395745]
[1735538989348,8.40083216,191.47,191.41,3.0]
[1735538989655,2.6171,191.46,191.42,6.67291065]
[1735538989849,2.6171,191.46,191.43,4.05531065]
[1735538990047,2.6171,191.46,191.42,2.6176]
[1735538990247,2.6171,191.46,191.43,4.05599211]
[1735538990442,2.6171,191.46,191.44,4.05542189]
[1735538990847,2.617,191.47,191.43,2.6175]
[1735538991049,2.617,191.47,191.44,4.05519528]
[1735538991250,2.617,191.47,191.43,2.6175]
[1735538991453,2.617,191.47,191.44,4.05499775]
[1735538991655,2.617,191.47,191.43,2.6175]
[1735538991859,2.617,191.47,191.44,4.05513733]
[1735538992045,2.617,191.47,191.43,2.6175]
[1735538992250,2.617,191.47,191.44,4.0566295]
[1735538992547,2.6168,191.48,191.44,2.6173]
[1735538992746,2.6168,191.48,191.45,4.05727294]
[1735538993153,2.6168,191.48,191.44,2.6173]
[1735538993353,2.6168,191.48,191.45,4.05730109]
[1735538993550,2.6168,191.48,191.44,2.6173]
[1735538993757,2.6168,191.48,191.45,4.05682131]
[1735538993957,2.6168,191.48,191.44,2.6173]
[1735538994150,2.6168,191.48,191.45,4.05701285]
[1735538994350,2.6168,191.48,191.44,2.6173]
[1735538994551,2.6168,191.48,191.45,4.0554722]
[1735538994751,2.6168,191.48,191.44,2.6173]
[1735538994950,2.6168,191.48,191.45,4.05452176]
[1735538995249,2.6168,191.48,191.44,2.6173]
[1735538995448,2.6168,191.48,191.45,4.05317745]
[1735538995657,11.01753216,191.49,191.46,4.05349886]
[1735538995855,11.01753216,191.49,191.45,2.6172]
[1735538996052,2.6167,191.49,191.46,4.05298488]
[1735538996247,2.6167,191.49,191.45,2.6172]
[1735538996449,2.6167,191.49,191.46,4.05380456]
[1735538996650,2.6167,191.49,191.45,2.6172]
[1735538996861,2.6167,191.49,191.46,4.05365734]
[1735538997054,2.6167,191.49,191.45,2.6172]
[1735538997255,2.6167,191.49,191.46,4.05455581]
[1735538997560,2.6167,191.49,191.45,2.6172]
[1735538997760,2.6167,191.49,191.46,4.05410833]
[1735538997962,2.6167,191.49,191.45,2.6172]
[1735538998160,2.6167,191.49,191.46,4.05410833]
[1735538998361,2.6167,191.49,191.45,2.6172]
[1735538998666,2.6167,191.49,191.46,4.05380229]
[1735538998863,8.40083216,191.49,191.42,11.57503216]
[1735538999063,8.40083216,191.47,191.43,4.05397372]
[1735538999264,8.40083216,191.47,191.44,4.05397372]
[1735538999561,2.6171,191.46,191.45,4.05397372]
[1735539000562,11.01783216,191.47,191.45,4.05397372]
[1735539000759,11.01783216,191.47,191.46,4.0528522]
[1735539000957,11.01783216,191.47,191.46,4.05284905]
[1735539001158,11.01783216,191.47,191.43,2.6175]
[1735539001363,11.01783216,191.47,191.44,4.05273796]
[1735539001661,11.01783216,191.47,191.44,2.6173]
[1735539001964,11.01783216,191.47,191.45,4.05251301]
[1735539002165,11.01783216,191.47,191.46,4.05251301]
[1735539002458,2.617,191.47,191.46,4.05251301]
[1735539003361,2.617,191.47,191.43,2.6174]
[1735539003664,2.617,191.47,191.44,4.05060767]
[1735539003863,2.617,191.47,191.45,4.05060767]
[1735539004065,2.617,191.47,191.43,2.6174]
[1735539004257,2.617,191.47,191.44,4.05045613]
[1735539004459,2.617,191.47,191.45,4.05045613]
[1735539004659,2.617,191.47,191.43,2.6174]
[1735539004959,2.617,191.47,191.44,4.05115427]
[1735539005164,2.617,191.47,191.45,4.05115427]
[1735539005365,2.617,191.47,191.43,2.6174]
[1735539005666,8.40083216,191.49,191.44,4.05147491]
[1735539005962,8.40083216,191.49,191.43,2.6174]
[1735539006165,8.40083216,191.49,191.44,4.05144627]
[1735539006358,8.40083216,191.49,191.45,4.05055241]
[1735539006562,8.40083216,191.49,191.43,2.6174]
[1735539006762,11.01753216,191.49,191.45,2.6172]
[1735539007564,2.6168,191.48,191.45,2.6172]
[1735539008571,2.6168,191.48,191.43,8.40083216]
[1735539008767,2.6168,191.48,191.44,6.66644489]
[1735539008967,2.6168,191.48,191.45,4.04914489]
[1735539009270,2.6168,191.48,191.44,2.6173]
[1735539009568,11.01753216,191.49,191.45,6.66587807]
[1735539009765,11.01753216,191.49,191.46,4.04867807]
[1735539009966,11.01753216,191.49,191.45,5.6172]
[1735539011267,2.6171,191.46,191.45,3.0]
[1735539011973,2.6171,191.46,191.45,7.04674063]
[1735539012170,8.40083216,191.49,191.45,3.0]
[1735539012366,2.6167,191.49,191.45,3.0]
[1735539013473,2.6167,191.49,191.45,5.6172]
[1735539015478,2.6169,191.48,191.45,3.0]
[1735539015671,8.40083216,191.51,191.45,3.0]
[1735539015976,2.6168,191.48,191.45,3.0]
[1735539020378,2.6171,191.46,191.45,3.0]
[1735539021281,8.40083216,191.49,191.45,3.0]
[1735539021481,2.617,191.47,191.45,3.0]
[1735539023383,1.5157,191.54,191.46,12.45226539]
[1735539023583,8.40083216,191.53,191.46,8.40083216]
[1735539023983,8.40083216,191.53,191.48,8.40083216]
[1735539024888,11.01703216,191.53,191.48,11.01753216]
[1735539025791,2.6163,191.52,191.48,11.01753216]
[1735539026084,1.5157,191.54,191.51,2.6164]
[1735539026881,1.5157,191.54,191.5,8.40083216]
[1735539027080,9.91653216,191.54,191.46,1.5972]
[1735539027281,9.91653216,191.54,191.47,4.05240046]
[1735539027484,9.91653216,191.54,191.48,4.05240046]
[1735539027784,2.6164,191.52,191.47,2.6168]
[1735539028087,2.6164,191.52,191.48,4.05390316]
[1735539028283,2.6164,191.52,191.47,2.6168]
[1735539028485,2.6164,191.52,191.48,4.05473598]
[1735539028783,2.6164,191.52,191.48,2.6168]
[1735539029783,9.91653216,191.54,191.46,12.99803216]
[1735539030090,12.53263216,191.54,191.5,2.6165]
[1735539032389,4.1318,191.54,191.5,2.6165]
[1735539032888,4.1318,191.54,191.5,11.01733216]
[1735539033090,4.1317,191.54,191.5,11.01733216]
[1735539034392,2.6164,191.51,191.48,8.40083216]
[1735539034593,2.6164,191.51,191.49,4.05815917]
[1735539034890,2.6164,191.51,191.48,8.40083216]
[1735539035081,2.6164,191.51,191.49,4.05830268]
[1735539035281,2.6164,191.51,191.48,8.40083216]
[1735539035487,2.6164,191.51,191.49,4.05907305]
[1735539035687,2.6164,191.51,191.48,8.40083216]
[1735539035886,2.6164,191.51,191.49,4.0586488]
[1735539036088,2.6164,191.51,191.48,8.40083216]
[1735539036285,2.6164,191.51,191.49,4.05909601]
[1735539036485,2.6164,191.51,191.48,8.40083216]
[1735539036685,2.6164,191.51,191.49,4.05891062]
[1735539036888,2.6164,191.51,191.48,8.40083216]
[1735539037090,2.6164,191.51,191.49,4.05912724]
[1735539037296,2.6164,191.51,191.48,8.40083216]
[1735539037593,2.6164,191.51,191.49,4.05936888]
[1735539037795,2.6164,191.51,191.48,8.40083216]
[1735539037987,21.84005914,191.59,191.5,8.40083216]
[1735539038191,2.6159,191.55,191.52,11.01703216]
[1735539038889,21.84005914,191.59,191.52,11.01703216]
[1735539039197,2.6157,191.57,191.52,11.01703216]
[1735539040286,2.6155,191.58,191.54,11.01673216]
[1735539040685,8.40083216,191.6,191.51,3.0]
[1735539040896,4.1921,191.61,191.56,8.40083216]
[1735539041496,1.577,191.61,191.56,11.40083216]
[1735539041700,21.84005914,191.63,191.57,4.05021096]
[1735539041900,21.84005914,191.63,191.62,8.40083216]
[1735539042191,1.4733,191.68,191.62,8.40083216]
[1735539042192,21.84005914,191.68,191.62,8.40083216]
[1735539042388,21.84005914,191.68,191.64,8.40083216]
[1735539043104,21.84005914,191.68,191.64,11.01543216]
[1735539043396,21.84005914,191.68,191.64,8.40083216]
[1735539043590,2.6141,191.68,191.64,8.40083216]
[1735539044592,2.6144,191.66,191.61,11.40083216]
[1735539046293,2.6144,191.66,191.61,3.0]
[1735539046499,2.6144,191.66,191.61,11.40083216]
[1735539046699,8.40083216,191.66,191.58,2.6153]
[1735539046899,8.40083216,191.64,191.59,3.0]
[1735539047300,8.40083216,191.62,191.54,3.0]
[1735539047496,3.009,191.76,191.54,3.0]
[1735539047497,8.40083216,191.6,191.55,4.02778508]
[1735539047804,8.40083216,191.6,191.54,3.0]
[1735539048301,2.6155,191.58,191.54,3.0]
[1735539048503,8.40083216,191.6,191.54,3.0]
[1735539049402,2.6153,191.59,191.54,5.6158]
[1735539050800,8.40083216,191.6,191.54,5.6158]
[1735539051008,2.6154,191.58,191.54,5.6158]
[1735539051506,2.6158,191.56,191.54,3.0]
[1735539051706,8.40083216,191.6,191.54,3.0]
[1735539053208,2.6157,191.56,191.54,3.0]
[1735539054307,8.40083216,191.6,191.54,3.0]
[1735539054809,2.6157,191.57,191.54,3.0]
[1735539055107,8.40083216,191.58,191.54,3.0]
[1735539055502,8.40083216,191.58,191.5,2.6165]
[1735539055503,2.616,191.54,191.5,2.6165]
[1735539055808,2.616,191.54,191.51,8.40083216]
[1735539062013,2.6157,191.56,191.51,11.01713216]
[1735539062310,8.40083216,191.6,191.53,8.40083216]
[1735539062514,2.6157,191.57,191.53,11.01693216]
[1735539062911,8.40083216,191.6,191.51,8.40083216]
[1735539063111,8.40083216,191.58,191.51,8.40083216]
[1735539064819,2.6161,191.54,191.51,8.40083216]
[1735539066212,8.40083216,191.58,191.51,8.40083216]
[1735539067509,2.6158,191.56,191.52,2.6162]
[1735539067908,2.6159,191.55,191.51,11.01723216]
[1735539075214,2.6159,191.55,191.51,2.6164]
[1735539075414,8.40083216,191.56,191.47,1.48]
[1735539075614,8.40083216,191.53,191.48,4.04200465]
[1735539075814,8.40083216,191.53,191.48,3.0]
[1735539076017,2.6163,191.52,191.48,3.0]
[1735539076214,8.40083216,191.55,191.48,3.0]
[1735539076816,2.6163,191.52,191.48,5.6167]
[1735539077218,2.6164,191.51,191.48,5.6167]
[1735539078722,8.40083216,191.55,191.48,3.0]
[1735539078924,2.6167,191.49,191.48,3.0]
[1735539079323,2.6165,191.5,191.48,3.0]
[1735539079524,8.40083216,191.53,191.48,3.0]
[1735539081423,2.6165,191.51,191.48,3.0]
[1735539084525,8.40083216,191.53,191.48,3.0]
[1735539084731,2.6163,191.52,191.49,8.40083216]
[1735539085732,2.616,191.54,191.5,2.6164]
[1735539085922,2.616,191.54,191.51,8.40083216]
[1735539086331,8.40083216,191.57,191.51,8.40083216]
[1735539087337,2.616,191.54,191.51,11.01723216]
[1735539092336,2.616,191.54,191.52,4.04876724]
[1735539092537,2.616,191.54,191.51,11.01723216]
[1735539092841,2.616,191.54,191.52,4.04878993]
[1735539093045,2.616,191.54,191.51,11.01723216]
[1735539093235,2.616,191.54,191.52,4.04941768]
[1735539093442,2.616,191.54,191.51,11.01723216]
[1735539093747,2.616,191.54,191.52,4.05069402]
[1735539094048,2.616,191.54,191.51,11.01723216]
[1735539094242,2.616,191.54,191.52,4.0507493]
[1735539094545,23.34035914,191.63,191.53,15.45126449]
[1735539094845,21.84005914,191.63,191.57,8.40083216]
[1735539095047,21.84005914,191.63,191.59,8.40083216]
[1735539095251,21.84005914,191.63,191.6,4.04619265]
[1735539095541,21.84005914,191.63,191.61,15.05972257]
[1735539095748,2.6145,191.65,191.61,8.40083216]
[1735539096743,8.40083216,191.66,191.58,3.0]
[1735539096944,8.40083216,191.64,191.59,4.04229336]
[1735539097247,2.615,191.62,191.58,3.0]
[1735539097446,2.615,191.62,191.59,4.04119184]
[1735539097646,2.615,191.62,191.58,11.40083216]
[1735539100551,2.615,191.62,191.59,4.03731992]
[1735539100753,2.615,191.62,191.58,14.01623216]
[1735539100940,2.615,191.62,191.59,4.03729944]
[1735539101148,2.615,191.62,191.58,14.01623216]
[1735539102643,8.40083216,191.66,191.58,14.01623216]
[1735539102847,2.6148,191.64,191.6,8.40083216]
[1735539103050,8.40083216,191.67,191.62,8.40083216]
[1735539103446,8.40083216,191.67,191.63,3.0]
[1735539103842,1.4675,191.69,191.63,3.0]
[1735539104043,8.40083216,191.7,191.64,8.40083216]
[1735539104551,11.01473216,191.7,191.65,2.6145]
[1735539105053,2.614,191.69,191.65,2.6145]
[1735539105246,2.614,191.69,191.64,8.40083216]
[1735539105453,2.614,191.69,191.64,11.01543216]
[1735539105751,8.40083216,191.7,191.64,8.40083216]
[1735539105952,2.6138,191.71,191.66,8.40083216]
[1735539106649,2.6138,191.7,191.66,11.01513216]
[1735539110261,8.40083216,191.72,191.66,11.01513216]
[1735539110456,2.6136,191.72,191.68,8.40083216]
[1735539110659,2.6136,191.72,191.69,3.0]
[1735539112260,2.6134,191.73,191.69,5.6139]
[1735539114461,2.6135,191.72,191.69,3.0]
[1735539114857,2.6137,191.71,191.69,3.0]
[1735539122263,1.5083,191.74,191.69,3.0]
[1735539122561,2.6136,191.72,191.69,3.0]
[1735539123568,2.6137,191.71,191.69,3.0]
[1735539125972,1.5083,191.74,191.68,8.40083216]
[1735539126171,2.6139,191.69,191.68,3.0]
[1735539130084,2.6138,191.71,191.68,3.0]
[1735539130270,1.5083,191.74,191.69,8.40083216]
[1735539131875,2.6138,191.7,191.69,8.40083216]
[1735539136284,1.5736,191.77,191.69,8.40083216]
[1735539136583,21.84005914,191.8,191.68,3.0]
[1735539136584,1.5939,191.79,191.74,8.40083216]
[1735539136984,2.613,191.77,191.74,8.40083216]
[1735539138589,2.6131,191.76,191.74,8.40083216]
[1735539142394,2.6131,191.75,191.74,8.40083216]
[1735539144889,2.613,191.76,191.74,8.40083216]
[1735539145092,1.5939,191.79,191.74,8.40083216]
[1735539145290,8.40083216,191.78,191.72,8.40083216]
[1735539145794,2.6136,191.72,191.7,8.40083216]
[1735539148193,8.40083216,191.76,191.7,8.40083216]
[1735539148388,8.40083216,191.72,191.65,8.40083216]
[1735539148594,8.40083216,191.72,191.66,4.03877521]
[1735539148895,1.5695,191.71,191.65,11.40083216]
[1735539149099,1.5695,191.71,191.66,4.03942686]
[1735539149299,1.5695,191.71,191.64,8.40083216]
[1735539149898,1.5695,191.71,191.65,4.04061033]
[1735539150096,1.5695,191.71,191.64,8.40083216]
[1735539150297,2.6139,191.7,191.65,4.04082677]
[1735539150493,9.97033216,191.71,191.64,8.40083216]
[1735539150894,2.6139,191.69,191.65,4.04124693]
[1735539151101,2.6139,191.69,191.64,11.01543216]
[1735539151292,9.97033216,191.71,191.65,4.04060176]
[1735539151491,1.5932,191.75,191.7,8.40083216]
[1735539151797,31.7318913,191.77,191.7,8.40083216]
[1735539152392,9.89183216,191.77,191.7,8.40083216]
[1735539152590,2.6134,191.74,191.7,8.40083216]
[1735539153002,9.89183216,191.77,191.71,4.03802785]
[1735539153295,2.6134,191.73,191.7,8.40083216]
[1735539153699,2.6134,191.73,191.71,4.88434284]
[1735539153888,21.84005914,191.82,191.72,12.43853609]
[1735539154093,23.43065914,191.82,191.77,8.40083216]
[1735539154691,2.6124,191.8,191.77,8.40083216]
[1735539155289,23.43065914,191.82,191.77,8.40083216]
[1735539155700,1.5906,191.82,191.77,8.40083216]
[1735539156900,2.6125,191.8,191.77,8.40083216]
[1735539157298,2.6125,191.8,191.75,3.0]
[1735539157602,2.6126,191.79,191.76,8.40083216]
[1735539157795,2.6126,191.79,191.76,13.27443105]
[1735539157999,2.6126,191.79,191.76,8.40083216]
[1735539158198,2.6127,191.78,191.76,8.40083216]
[1735539158498,8.40083216,191.81,191.75,3.0]
[1735539158898,2.6125,191.8,191.75,3.0]
[1735539159098,8.40083216,191.81,191.75,3.0]
[1735539159495,2.6125,191.8,191.75,3.0]
[1735539159799,8.40083216,191.81,191.73,8.40083216]
[1735539160307,2.6129,191.77,191.73,8.40083216]
[1735539160500,2.6129,191.77,191.74,4.87319916]
[1735539160800,2.6129,191.77,191.73,8.40083216]
[1735539161202,2.6131,191.76,191.73,8.40083216]
[1735539161603,2.6131,191.76,191.74,4.87279484]
[1735539161803,2.6131,191.76,191.73,8.40083216]
[1735539162498,2.6131,191.76,191.74,4.87126679]
[1735539162906,2.6131,191.76,191.73,8.40083216]
[1735539163501,2.6131,191.76,191.74,4.87094352]
[1735539163905,2.6131,191.76,191.73,8.40083216]
[1735539164498,2.6131,191.76,191.74,4.87090428]
[1735539164711,2.6131,191.76,191.73,8.40083216]
[1735539165410,2.6131,191.76,191.74,4.87052931]
[1735539165901,2.6131,191.76,191.73,8.40083216]
[1735539167216,8.40083216,191.79,191.73,8.40083216]
[1735539167516,2.6129,191.77,191.74,4.02682631]
[1735539167717,2.6129,191.77,191.73,11.01413216]
[1735539167913,2.6129,191.77,191.74,8.89619104]
[1735539168220,1.5906,191.82,191.76,2.6129]
[1735539168806,2.6124,191.8,191.76,2.6129]
[1735539169009,1.5906,191.82,191.77,2.6128]
[1735539171417,2.6124,191.8,191.77,2.6128]
[1735539172020,1.5906,191.82,191.77,2.6128]
[1735539173420,2.6123,191.81,191.77,2.6128]
[1735539176521,2.6125,191.8,191.77,2.6128]
[1735539176915,8.40083216,191.78,191.71,8.40083216]
[1735539177120,8.40083216,191.78,191.72,4.02440609]
[1735539177320,8.40083216,191.78,191.72,4.86733772]
[1735539177619,8.40083216,191.78,191.73,4.86733772]
[1735539178021,2.6131,191.76,191.71,13.99443216]
[1735539178324,2.6131,191.76,191.72,4.86838019]
[1735539178515,2.6131,191.76,191.71,13.99443216]
[1735539178917,2.613,191.76,191.71,13.99443216]
[1735539179117,2.613,191.76,191.72,4.86914638]
[1735539179517,2.613,191.76,191.71,13.99443216]
[1735539180220,8.40083216,191.76,191.7,3.2181]
[1735539180425,8.40083216,191.74,191.68,11.38083216]
[1735539180625,2.6134,191.73,191.69,4.02856331]
[1735539180925,2.6134,191.73,191.7,4.02699937]
[1735539181124,2.6134,191.73,191.7,4.87206687]
[1735539181621,8.40083216,191.76,191.71,4.87206687]
[1735539181822,4.5706,191.82,191.72,8.40083216]
[1735539182016,8.40083216,191.8,191.73,2.98]
[1735539182224,2.6127,191.79,191.74,2.6132]
[1735539182419,8.40083216,191.8,191.73,7.85206687]
[1735539182617,8.40083216,191.8,191.73,5.5934]
[1735539182618,2.6128,191.78,191.73,5.5934]
[1735539182821,2.6128,191.78,191.73,2.98]
[1735539183225,2.6128,191.78,191.74,4.8668938]
[1735539183527,2.6128,191.78,191.73,2.98]
[1735539183926,9.99143216,191.82,191.76,8.40083216]
[1735539184124,1.579,191.86,191.78,8.40083216]
[1735539184315,8.40083216,191.84,191.79,2.98]
[1735539184518,23.39605914,191.87,191.8,8.40083216]
[1735539184726,31.7968913,191.87,191.8,8.40083216]
[1735539185216,9.95683216,191.87,191.82,2.6121]
[1735539185417,9.95683216,191.87,191.8,8.40083216]
[1735539187528,2.6119,191.85,191.8,8.40083216]
[1735539187925,9.95683216,191.87,191.8,8.40083216]
[1735539188522,2.6118,191.85,191.8,8.40083216]
[1735539189329,2.612,191.83,191.79,2.98]
[1735539189519,2.612,191.83,191.79,11.38083216]
[1735539194729,8.40083216,191.85,191.79,11.38083216]
[1735539196839,2.6122,191.82,191.79,8.40083216]
[1735539200941,8.40083216,191.85,191.79,8.40083216]
[1735539201140,9.95683216,191.87,191.81,8.40083216]
[1735539201640,1.556,191.87,191.81,8.40083216]
[1735539202641,2.6118,191.85,191.81,11.01313216]
[1735539202841,2.6118,191.85,191.78,2.98]
[1735539202842,1.468,191.91,191.83,8.40083216]
[1735539203042,2.6116,191.87,191.83,11.01283216]
[1735539203232,8.40083216,191.89,191.83,11.01283216]
[1735539203736,2.6116,191.86,191.83,8.40083216]
[1735539205844,8.40083216,191.89,191.83,8.40083216]
[1735539206044,2.6118,191.85,191.83,8.40083216]
[1735539208443,8.40083216,191.89,191.83,11.01283216]
[1735539209241,21.84005914,191.94,191.87,8.40083216]
[1735539209442,21.84005914,191.94,191.87,11.01223216]
[1735539209642,21.84005914,191.94,191.91,8.40083216]
[1735539210443,30.2408913,191.97,191.91,8.40083216]
[1735539211445,2.6105,191.94,191.91,8.40083216]
[1735539215141,8.40083216,191.97,191.91,8.40083216]
[1735539215338,2.6107,191.93,191.91,8.40083216]
[1735539216449,1.5592,191.98,191.91,8.40083216]
[1735539216644,1.5592,191.98,191.93,8.40083216]
[1735539217843,2.6103,191.96,191.93,8.40083216]
[1735539218239,2.6103,191.96,191.94,2.98]
[1735539218445,2.61,191.98,191.95,8.40083216]
[1735539218639,8.40083216,192.01,191.95,8.40083216]
[1735539219951,2.61,191.98,191.95,8.40083216]
[1735539220742,2.6101,191.97,191.95,8.40083216]
[1735539221048,8.40083216,192.01,191.95,8.40083216]
[1735539221451,1.4785,192.03,191.95,8.40083216]
[1735539221646,8.40083216,192.01,191.95,8.40083216]
[1735539222054,8.40083216,192.01,191.95,11.38083216]
[1735539222453,2.6102,191.96,191.95,11.38083216]
[1735539223656,2.61,191.98,191.95,11.38083216]
[1735539224855,2.6101,191.97,191.95,11.38083216]
[1735539227252,2.61,191.98,191.95,11.38083216]
[1735539227760,2.6098,192.0,191.95,13.99113216]
[1735539228856,2.6099,191.99,191.95,13.99113216]
[1735539229059,8.40083216,192.01,191.95,11.38083216]
[1735539229559,2.61,191.99,191.95,11.38083216]
[1735539230955,2.61,191.99,191.95,13.99123216]
[1735539231454,2.61,191.99,191.95,11.38083216]
[1735539231657,2.6099,191.99,191.95,11.38083216]
[1735539232161,2.6099,191.99,191.95,2.98]
[1735539232464,2.6099,191.99,191.96,8.40083216]
[1735539233661,2.6099,191.99,191.95,2.98]
[1735539233861,2.6099,191.99,191.96,8.40083216]
[1735539235759,8.40083216,192.02,191.96,8.40083216]
[1735539236661,2.6101,191.98,191.96,8.40083216]
[1735539237062,8.40083216,192.02,191.96,8.40083216]
[1735539237462,2.6099,191.99,191.96,8.40083216]
[1735539238767,2.6099,191.99,191.95,5.5903]
[1735539238964,2.6099,191.99,191.95,13.99113216]
[1735539240768,8.40083216,192.02,191.95,11.38083216]
[1735539240769,2.61,191.98,191.95,11.38083216]
[1735539241065,2.61,191.98,191.95,13.99123216]
[1735539243461,21.84005914,192.07,191.97,8.40083216]
[1735539243664,8.40083216,192.06,191.99,8.40083216]
[1735539243864,8.40083216,192.06,192.01,8.40083216]
[1735539244067,8.40083216,192.06,192.02,2.98]
[1735539245565,21.84005914,192.09,192.02,2.98]
[1735539245866,8.40083216,192.08,192.03,2.6093]
[1735539246274,21.84005914,192.1,192.05,8.40083216]
[1735539247467,21.84005914,192.1,192.07,8.40083216]
[1735539247658,8.40083216,192.12,192.08,2.98]
[1735539247863,2.6082,192.11,192.08,2.98]
[1735539248067,8.40083216,192.12,192.08,2.98]
[1735539249567,2.6085,192.09,192.08,2.98]
[1735539250664,1.5701,192.14,192.08,2.98]
[1735539250867,8.40083216,192.13,192.08,2.98]
[1735539251071,2.6085,192.1,192.08,2.98]
[1735539254267,2.6085,192.09,192.07,8.40083216]
[1735539254468,8.40083216,192.09,192.03,9.94883216]
[1735539254667,8.40083216,192.09,192.04,2.98]
[1735539254868,2.6086,192.08,192.05,2.98]
[1735539255071,8.40083216,192.09,192.05,2.98]
[1735539255270,8.40083216,192.09,192.04,11.38083216]
[1735539256475,2.609,192.06,192.04,11.38083216]
[1735539257076,8.40083216,192.11,192.04,11.38083216]
[1735539257472,8.40083216,192.13,192.06,8.40083216]
[1735539257671,2.6085,192.09,192.06,8.40083216]